Cogmind - Beta 10.2 @@@ ROGUE MODE // 2020.11.08 @ 19:23:52 // Halloween2020/ForbiddenLore Player: dark Result: Self-destructed Performance ------------- Evolutions (1) 500 Regions Visited (3) 600 Robots Destroyed (28) 140 Value Destroyed (622) 622 Prototype IDs (6) 120 Alien Tech Used (0) 0 Bonus (-187) -187 TOTAL SCORE: 1795 Bonus ------- Follower Combat Kills 95 Friendly Fire -282 Cogmind --------- Core Integrity 178/400 Matter 300/300 Energy 280/280 System Corruption 0% Temperature Cool (0) Movement Rolling (100) Location -9/Storage Parts ------- > --- POWER (1) -------- Heavy Ion Engine > --- PROPULSION (2) --- Compact Wheel > --- UTILITY (4) ------ Small Storage Unit Visual Processing Unit Improved Sensor Array Hacking Suite > --- WEAPON (2) ------- (None) > --- INVENTORY (6) ---- Improved Ion Engine Heavy Ion Engine Cooled Ion Engine Integration Mediator Peak State ------------ > --- POWER ------------ Heavy Ion Engine > --- PROPULSION ------- Hover Unit Hover Unit > --- UTILITY ---------- Small Storage Unit Visual Processing Unit Improved Sensor Array Hacking Suite > --- WEAPON ----------- Improved EM Shotgun Beamcaster > --- INVENTORY -------- Improved Ion Engine Heavy Ion Engine Cooled Ion Engine Integration Mediator Grenade Launcher [Rating: 22] Favorites ----------- Power Ion Engine Engine Ion Engine Propulsion Hover Unit Wheel Wheel Hover Unit Hover Unit Utility Small Storage Unit Device Improved Sensor Array Storage Small Storage Unit Processor Visual Processing Unit Hackware Hacking Suite Weapon Improved EM Shotgun Energy Gun Improved EM Shotgun Energy Cannon Beam Cannon Ballistic Gun Light Assault Rifle Launcher Grenade Launcher Build | -11 -10 -9 -9 ------- Run | Scr Mat Mat Sto Slots Evolved 2 | . . 2 . Power . | . . . . Propulsion . | . . . . Utility 2 | . . 2 . Weapon . | . . . . Parts Attached 45 | 3 10 15 17 Power 7 | . 1 2 4 Engine 7 | . 1 2 4 Core . | . . . . Reactor . | . . . . Propulsion 9 | 2 2 3 2 Treads . | . . . . Leg . | . . . . Wheel 3 | 2 . . 1 Hover 6 | . 2 3 1 Flight . | . . . . Utility 6 | 1 1 3 1 Device 2 | . . 1 1 Storage 1 | 1 . . . Processor 1 | . . 1 . Hackware 2 | . 1 1 . Protection . | . . . . Artifact . | . . . . Weapon 23 | . 6 7 10 Energy Gun 11 | . 1 4 6 Energy Cannon 4 | . 2 2 . Ballistic Gun 2 | . 1 1 . Ballistic Cannon . | . . . . Launcher 6 | . 2 . 4 Special Weapon . | . . . . Impact Weapon . | . . . . Slashing Weapon . | . . . . Piercing Weapon . | . . . . Special Melee Weapon . | . . . . Unidentified Prototypes 4 | . . 2 2 Parts Lost 13 | . . 6 7 Power 1 | . . 1 . Propulsion 6 | . . 3 3 Utility 1 | . . 1 . Weapon 5 | . . 1 4 Highest Loss Streak 5 | . . 4 5 Average Slot Usage (%) 87 | . 91 80 92 Engine 11 | . 13 10 11 Hover 22 | . 26 21 18 Device 3 | . . 3 9 Storage 12 | . 14 11 11 Processor 6 | . . 9 11 Hackware 11 | . 10 11 11 Energy Gun 9 | . 4 7 18 Energy Cannon 6 | . 10 5 . Ballistic Gun 1 | . 4 . . Launcher 2 | . 3 1 1 Naked Turns . | . . . . Heaviest Build 21 | 4 15 19 21 Greatest Support 20 | 20 20 12 16 Greatest Overweight (x) 3 | . 1 1 3 Average Overweight (x) . | . . . 1 Largest Inventory Capacity 6 | 6 6 6 6 Average Capacity 5 | 5 6 6 6 Most Carried 6 | 6 6 6 6 Average Carried 5 | 4 5 4 5 Final Capacity 6 | 6 6 6 6 Final Carried 6 | 6 5 6 4 Class Distribution -------------------- 67% | Mutant 29% | Scavenger-Mutant 3% | Hacker-Mutant Dominant Class ---------------- Mutant | -10/Materials Mutant | -9/Materials Scavenger-Mutant | -9/Storage Resources | -11 -10 -9 -9 ----------- Run | Scr Mat Mat Sto Matter Collected 766 | 230 35 296 205 Remotely . | . . . . Salvage Created 775 | . 67 355 353 Parts 60 | . 14 28 18 Haulers Intercepted 1 | . . 1 . Recyclers Shooed 2 | . . 1 1 Parts Field Recycled . | . . . . Retrieved Matter . | . . . . Parts Self-Destructed . | . . . . Prevented . | . . . . Kills | -11 -10 -9 -9 ------- Run | Scr Mat Mat Sto Combat Hostiles Destroyed 19 | . 4 9 6 Guns 5 | . . 3 2 Cannons 2 | . . 2 . AOE 12 | . 4 4 4 Classes Destroyed 9 | . 3 4 2 Builder 1 | . 1 . . Hauler 1 | . . 1 . Operator 3 | . 2 . 1 Watcher 2 | . . 2 . Swarmer 8 | . 4 4 . Grunt 7 | . . 3 4 Brawler 1 | . . . 1 Protector 1 | . . . 1 Sentry 2 | . . 2 . Thug 2 | . . . 2 Best Kill Streak 6 | . 4 4 6 Combat Bots Only 6 | . 3 4 6 Max Kills in Single Turn 5 | . 2 2 5 Gunslinging . | . . . . Exploded 4 | . 2 2 4 Melee . | . . . . Uniques/NPCs Destroyed . | . . . . Combat | -11 -10 -9 -9 -------- Run | Scr Mat Mat Sto Damage Taken 1055 | . 148 330 577 Core 249 | . 27 49 173 Absorbed by Shields . | . . . . Core Remaining (%) 94 | 100 89 . . Volleys Fired 59 | . 11 33 15 Largest 2 | . 2 2 2 Hottest 120 | . 70 90 120 Shots Fired 80 | . 14 39 27 Gun 39 | . 6 12 21 Cannon 23 | . 2 21 . Launcher 18 | . 6 6 6 Special . | . . . . Kinetic 3 | . 3 . . Thermal 33 | . 5 21 7 Explosive 18 | . 6 6 6 Electromagnetic 26 | . . 12 14 Robot Hit Streak 13 | . 2 13 5 Robot Miss Streak 2 | . 1 2 2 Penetration Max . | . . . . Secondary Targets . | . . . . Shots Hit Robots 53 | . 7 31 15 Core Hits 47 | . 11 17 19 Critical Hits . | . . . . Critical Kills . | . . . . Critical Parts Destroyed . | . . . . Melee Attacks . | . . . . Impact . | . . . . Slashing . | . . . . Piercing . | . . . . Sneak Attacks . | . . . . Combat Hostiles . | . . . . Follow-up Attacks . | . . . . Damage Inflicted 1969 | . 387 863 719 Guns 443 | . 53 180 210 Cannons 351 | . 18 333 . Explosions 1175 | . 316 350 509 Melee . | . . . . Ramming . | . . . . Kinetic 14 | . 14 . . Thermal 444 | . 57 333 54 Explosive 1155 | . 316 350 489 Electromagnetic 356 | . . 180 176 Impact . | . . . . Slashing . | . . . . Piercing . | . . . . Highest Corruption . | . . . . Average Corruption . | . . . . Corruption Purged . | . . . . Overload Shots . | . . . . Overflow Damage 135 | . 26 109 . Projectiles . | . . . . Explosions 135 | . 26 109 . Melee . | . . . . Knockbacks . | . . . . Impact . | . . . . Kinetic . | . . . . Secondary . | . . . . Self-Inflicted Damage 129 | . 43 39 47 Shots 6 | . 2 1 3 Rammed . | . . . . Targets Rammed . | . . . . Kicked . | . . . . Crushed . | . . . . Highest Temperature 167 | . 48 144 167 Average Temperature 62 | . 20 60 75 Received Heat Transfer 399 | . 12 81 306 Siege Activations . | . . . . Robots Corrupted . | . . . . Combat Hostiles . | . . . . Parts Fried 2 | . . 1 1 Impact Corruptions . | . . . . Robots Melted . | . . . . Combat Hostiles . | . . . . Parts Melted 3 | . . 3 . Heat Transferred 976 | . 148 703 125 Parts Sabotaged . | . . . . Parts Stolen . | . . . . Parts Stripped . | . . . . Power Chain Reactions 1 | . . . 1 Missiles Intercepted . | . . . . Alert | -11 -10 -9 -9 ------- Run | Scr Mat Mat Sto Peak Influence 268 | . 268 211 228 Initial 25 | . . 25 21 Average 112 | . 106 131 110 Maximum Alert Level 1 | . 1 1 1 Low Security (%) 80 | 100 87 79 67 Level 1 19 | . 12 20 32 Level 2 . | . . . . Level 3 . | . . . . Level 4 . | . . . . Level 5 . | . . . . High Security . | . . . . Max Security . | . . . . Squads Dispatched 5 | . 2 . 3 Investigation . | . . . . Extermination . | . . . . Reinforcement 3 | . 2 . 1 Assault 2 | . . . 2 Garrison . | . . . . Intercept . | . . . . Construction Impeded . | . . . . Haulers Reinforced . | . . . . Stealth | -11 -10 -9 -9 --------- Run | Scr Mat Mat Sto Distress Signals 3 | . 3 . . Communications Jammed . | . . . . Distress Signals . | . . . . Times Spotted 48 | . 20 13 15 Peak Tracking Total 9 | . 5 4 9 Tactical Retreats 4 | . 4 . . Traps | -11 -10 -9 -9 ------- Run | Scr Mat Mat Sto Traps Triggered . | . . . . Indirectly . | . . . . Trap Hack Attempts . | . . . . Triggered . | . . . . Disarmed . | . . . . Reprogrammed . | . . . . Reused . | . . . . Traps Extracted . | . . . . Installed . | . . . . Triggered . | . . . . Machines | -11 -10 -9 -9 ---------- Run | Scr Mat Mat Sto Machines Disabled 4 | . 2 . 2 Max in Single Turn 1 | . 1 . 1 Machines Sabotaged . | . . . . Garrisons Compromised . | . . . . Overloaded Fab Kills . | . . . . Fab Network Shutdowns . | . . . . Hacking | -11 -10 -9 -9 --------- Run | Scr Mat Mat Sto Machines Accessed 6 | . 6 . . Terminals 5 | . 5 . . Fabricators . | . . . . Repair Stations . | . . . . Recycling Units 1 | . 1 . . Scanalyzers . | . . . . Garrison Access . | . . . . Total Hacks 26 | . 26 . . Successful 19 | . 19 . . Failed 7 | . 7 . . Catastrophic . | . . . . Database Lockouts . | . . . . Manual 17 | . 17 . . Terminals 23 | . 23 . . Fabricators . | . . . . Repair Stations . | . . . . Recycling Units 3 | . 3 . . Scanalyzers . | . . . . Garrison Access . | . . . . Terminal Hacks 10 | . 10 . . Prototype ID Bank 1 | . 1 . . Branch Access Points 1 | . 1 . . Emergency Access Points 1 | . 1 . . Terminal Index 1 | . 1 . . Scanalyzer Index 1 | . 1 . . Unreport Threat 3 | . 3 . . Locate Traps 2 | . 2 . . Fabricator Hacks . | . . . . Repair Station Hacks . | . . . . Recycling Unit Hacks 1 | . 1 . . Report Inventory 1 | . 1 . . Scanalyzer . | . . . . Garrison Access Hacks . | . . . . Unauthorized Hacks 8 | . 8 . . Terminals 6 | . 6 . . Track 1 | . 1 . . Botnet 4 | . 4 . . Operators 1 | . 1 . . Fabricators . | . . . . Repair Stations . | . . . . Recycling Units 2 | . 2 . . Monitor 1 | . 1 . . Recyclers 1 | . 1 . . Scanalyzers . | . . . . Garrison Access . | . . . . Data Cores Recovered . | . . . . Used . | . . . . Hacking Detections 6 | . 6 . . Full Trace Events . | . . . . Feedback Events . | . . . . Feedback Blocked . | . . . . Robot Schematics Acquired . | . . . . Robots Built . | . . . . Matter . | . . . . Time . | . . . . Total Robot Build Rating . | . . . . Part Schematics Acquired . | . . . . Parts Built . | . . . . Matter . | . . . . Time . | . . . . Total Part Build Rating . | . . . . Parts Repaired . | . . . . Time . | . . . . Parts Recycled . | . . . . Recycled Matter . | . . . . Retrieved Matter . | . . . . Retrieved Components . | . . . . Parts Scanalyzed . | . . . . Part Schematics Acquired . | . . . . Parts Damaged . | . . . . Bothacking | -11 -10 -9 -9 ------------ Run | Scr Mat Mat Sto Used RIF Installer . | . . . . Robots Hacked . | . . . . Non-combat . | . . . . Combat . | . . . . Robot Hacks Applied . | . . . . Relay Couplers Released . | . . . . Robots Rewired . | . . . . Allies Hacked . | . . . . Hacks Repelled . | . . . . Allies | -11 -10 -9 -9 -------- Run | Scr Mat Mat Sto Total Allies 2 | . . . 2 Largest Group 2 | . . . 2 Highest-Rated Group 62 | . . . 62 Highest-Rated Ally 31 | . . . 31 Total Orders . | . . . . Ally Attacks 12 | . . . 12 Total Damage 209 | . . . 209 Kills 3 | . . . 3 Allies Corrupted . | . . . . Allies Melted . | . . . . Intel | -11 -10 -9 -9 ------- Run | Scr Mat Mat Sto Robot Analysis Total . | . . . . Derelict Logs Recovered . | . . . . Drone Launches . | . . . . Drone Recoveries . | . . . . Exploration | -11 -10 -9 -9 ------------- Run | Scr Mat Mat Sto Turns Passed 1257 | 47 425 474 311 Spaces Moved 935 | 48 474 308 105 Core 10 | 10 . . . Treads . | . . . . Legs . | . . . . Wheels 53 | 38 8 . 7 Hover 872 | . 466 308 98 Flight . | . . . . Fastest Speed 50 | 50 56 56 56 Average Speed 80 | 73 69 79 135 Slowest Speed 240 | 80 116 116 240 Overloaded Moves . | . . . . Propulsion Burnouts . | . . . . Robots Hopped . | . . . . Cave-ins Triggered . | . . . . Exploration Rate (%) 30 | 3 82 16 20 Regions Visited 3 Branch Regions 1 Pre-discovered Areas . | . . . . Known Exits Taken . | . . . . Unknown Exits Taken 3 | 1 1 1 . Scrap Searched . | . . . . Spaces Dug 7 | . . . 7 Terrain Destroyed 91 | . 34 26 31 Melee . | . . . . Projectile . | . . . . AOE 91 | . 34 26 31 Terrain Rammed . | . . . . Walls Destroyed . | . . . . Machines Disabled . | . . . . Actions | -11 -10 -9 -9 --------- Run | Scr Mat Mat Sto Total 1361 | 59 559 500 243 Wait 261 | . 43 121 97 Move 932 | 47 473 307 105 Hop . | . . . . Pick Up 36 | 9 12 10 5 Fast Attach 6 | . . 3 3 Attach 30 | 3 10 10 7 Detach 9 | . 1 7 1 Swap 9 | . . 2 7 Drop 19 | . 9 7 3 Fire 59 | . 11 33 15 Melee . | . . . . Ram . | . . . . Kick . | . . . . Crush . | . . . . Escape Stasis . | . . . . Rewire . | . . . . Trap . | . . . . Miscellaneous . | . . . . Route ------- -11/Scrapyard -10/Materials (discovered 4 exits: [*Mat x3] / *Min) -9/Materials -9/Storage History --------- Turn | Location | Event 9 | -11/Scrapyard | Discovered new exit (range 15) 48 | -11/Scrapyard | Entered Materials 132 | -10/Materials | Discovered new exit (range 16) 263 | -10/Materials | Discovered new exit (range 9) 301 | -10/Materials | Build established: Mutant 313 | -10/Materials | Discovered new exit (range 10) 374 | -10/Materials | Discovered new exit (range 7) 388 | -10/Materials | Identified exit to Mines 473 | -10/Materials | Entered another Materials area 473 | -9/Materials | Evolved 2 slots: Utility x2 534 | -9/Materials | Lost 4 parts (2n1u1w) 596 | -9/Materials | Discovered new exit (range 17) 947 | -9/Materials | Entered Storage 989 | -9/Storage | Met a pair of Derelict thieves 1230 | -9/Storage | Build established: Scavenger-Mutant 1254 | -9/Storage | Core integrity fell below 50% 1258 | -9/Storage | Self-destructed Last Messages --------------- Hover Unit destroyed. The unstable cave ceiling collapses. G-34 Mercenary crushed by falling debris. R-06 Scavenger collects Rnf. Ion Engine. R-06 Scavenger collects Aluminum Leg. R-06 Scavenger collects Ion Engine. Component Storage disabled. R-06 Scavenger collects Aluminum Leg. Imp. EM Shotgun destroyed. R-06 Scavenger collects Imp. Heat Sink. G-34 Mercenary IFF system glitched. K-01 Serf collects debris. Beamcaster destroyed. Grenade Launcher destroyed. K-01 Serf collects debris. Acquired Com. Wheel. K-01 Serf collects debris. Hover Unit destroyed. Acquired 25 matter. K-01 Serf collects debris. Map ----- +----------------------------------------------------+ | ???????# ???????????????? | | ???????# ???????????????? | | ???????# ???????????????? | | ???????######+##########+????????????????????? | | ??????????## #????????????????????????? | | ??????????#" """ #????????????????????????? | | ??????????#T """ #????????????????????????? | | ??????????#" """ #????????????????????????? | | ??????????## #????????????????????????? | | ??????????## "" #????????????????????????? | | ??????????#" """ #????????????????????????? | | ??????????#" "" #????????????????????????? | | ??????????#" #????????????????????????? | | ??????????##"""######????????????????????????? | | ???????????# ###?????????????????????????????? | | ???????????# #???????????????????????????????? | | ???????????# #???????????????????????????????? | | ???????????# #???????????????????????????????? | | ???????????# #???????????????????????????????? | | ???????????# #???????????????????????????????? | | ???######### #???????????????????????????????? | | ???#** # # ####################????????????? | | ???# * " # w ^ #????????????? | | ???#* + m % ^ #????????????? | | ???# " # %% ##???????????? | | ???# * #T####+#+### @ % #????#####??? | | ???#* ###?# g *=% [ # #??? | | ???######???# a % ## """ #??? | | ????????????# =[ = # # """ /??? | | ????????????# # gg % "" """ ???? | | ????????????# # "" #"T #??? | | ????????????# k "" #"" #??? | | ????????????# """"" #?# "Y" #??? | | ????????????# # #?? """ +??? | | ????????????# ###########??? ????? | | ????????????##########?????????????######????? | | ?????????????????????????????????????????????? | | ?????????????????????????????????????????????? | | ?????????????????????????????????????????????? | | ?????????????????????????????????????????????? | | ?????????????????????????????????????????????? | | ?????????????????????????????????????????????? | | ?????????????????????????????????????????????? | | ?????????????????????????????????????????????? | | ?????????????????????????????????????????????? | | ?????????????????????????????????????????????? | | ?????????????????????????????????????????????? | | ?????????????????????????????????????????????? | | ?????????????????????????????????????????????? | | ?????????????????????????????????????????????? | +----------------------------------------------------+ Best States ------------- Heat Dissipation 28 Energy Generation 14 Energy Capacity 280 Matter Stores 300 Matter Capacity 300 Sight Range 18 Robot Scan Range 13 Terrain Scan Density 10 Evasion (%) 53 Offensive Hacking 20 Item Schematics ----------------- None Robot Schematics ------------------ None Fabricated ------------ Nothing Alien Tech Used ----------------- None Achievements -------------- None Challenges ------------ None Game ------ Seed NeutralizingImprovedMace Manual? 0 Play Time 00:20:25 Cumulative 76.3 hours Start 2020.11.08 @ 19:06:04 End 2020.11.08 @ 19:23:52 Sessions 1 Manual Loads 0 Difficulty Rogue Special Mode Halloween2020/ForbiddenLore Game No. 113 Rogue 79 Adventurer 11 Explorer 23 Win Type - Total 0 Types 0/0/0/0/0/0/0/0/0 Lore% 37 Gallery% 60 Achievement% 34 Wizard Run 0 Options --------- ASCII 0 Keyboard 0 Movement Mouse Keybinds 0 Fullscreen 2 Font 18/SmallcapsGlow Map View 76x50 Tactical HUD 0 Map Filters NONE Filters NONE Steam 1 RUN: b0598cff-bf33-40a0-95df-1bd16902c2b8